fUST/lending_fUST_20240723
["ID","MTS","AMOUNT","RATE_DAILY","PERIOD"]
[332952364,1721701862485,-505.80756735,0.00013698,2]
[332952365,1721701862496,-500.0,0.00013698,2]
[332952366,1721701862506,-500.0,0.00013698,2]
[332952367,1721701862516,-500.0,0.00013698,2]
[332952368,1721701862526,-500.0,0.00013698,2]
[332952369,1721701862536,-500.0,0.00013698,2]
[332952370,1721701862547,-500.0,0.00013698,2]
[332952371,1721701862557,-504.16423247,0.00013698,2]
[332952372,1721701862568,-500.0,0.00013698,2]
[332952373,1721701862579,-500.0,0.00013698,2]
[332952374,1721701862589,-566.40932014,0.00013698,2]
[332952375,1721701862599,-501.80920561,0.00013698,2]
[332952376,1721701862609,-504.9831654,0.00013698,2]
[332952377,1721701862621,-501.77730602,0.00013698,2]
[332952378,1721701862635,-500.0,0.00013698,2]
[332952379,1721701862646,-500.0,0.00013698,2]
[332952380,1721701862657,-500.0,0.00013698,2]
[332952381,1721701862667,-500.0,0.00013698,2]
[332952382,1721701862676,-500.0,0.00013698,2]
[332952383,1721701862687,-505.18217594,0.00013698,2]
[332952384,1721701862699,-500.0,0.00013698,2]
[332952385,1721701862709,-150.0,0.00013698,2]
[332952386,1721701862720,-474.8163038,0.00013698,2]
[332952387,1721701862730,-516.65443341,0.00013698,2]
[332952388,1721701862740,-500.0,0.00013698,2]
[332952389,1721701862750,-500.0,0.00013698,2]
[332952390,1721701862760,-500.0,0.00013698,2]
[332952391,1721701862771,-500.0,0.00013698,2]
[332952392,1721701862781,-504.15844374,0.00013698,2]
[332952393,1721701862792,-494.51979165,0.00013698,2]
[332952394,1721701862801,-500.0,0.00013698,2]
[332952395,1721701862811,-502.59321785,0.00013698,2]
[332952396,1721701862821,-256.37294633,0.00013698,2]
[332952397,1721701862831,-151.0,0.00013698,2]
[332952398,1721701862841,-151.0,0.00013698,2]
[332952399,1721701862851,-151.0,0.00013698,2]
[332952400,1721701862861,-151.0,0.00013698,2]
[332952401,1721701862872,-151.0,0.00013698,2]
[332952402,1721701862883,-151.0,0.00013698,2]
[332952403,1721701862892,-151.0,0.00013698,2]
[332952404,1721701862902,-151.0,0.00013698,2]
[332952405,1721701862912,-151.0,0.00013698,2]
[332952406,1721701862921,-502.27820714,0.00013698,2]
[332952407,1721701862931,-151.0,0.00013698,2]
[332952408,1721701862942,-151.0,0.00013698,2]
[332952409,1721701862952,-220.388891,0.00013698,2]
[332952410,1721701862961,-500.0,0.00013698,2]
[332952411,1721701862972,-378.36624189,0.00013698,2]
[332952412,1721701862982,-181.20040189,0.00013698,2]
[332952413,1721701862992,-500.0,0.00013698,2]
[332952414,1721701863002,-500.0,0.00013698,2]
[332952415,1721701863011,-506.643855,0.00013698,2]
[332952416,1721701863022,-500.0,0.00013698,2]
[332952417,1721701863032,-500.0,0.00013698,2]
[332952418,1721701863042,-500.0,0.00013698,2]
[332952419,1721701863052,-503.90686017,0.00013698,2]
[332952420,1721701863063,-505.31815533,0.00013698,2]
[332952421,1721701863073,-500.0,0.00013698,2]
[332952422,1721701863083,-500.0,0.00013698,2]
[332952423,1721701863094,-500.0,0.00013698,2]
[332952424,1721701863104,-500.0,0.00013698,2]
[332952425,1721701863114,-500.0,0.00013698,2]
[332952426,1721701863125,-500.0,0.00013698,2]
[332952427,1721701863137,-517.52762885,0.00013698,2]
[332952428,1721701863148,-508.62927839,0.00013698,2]
[332952429,1721701863159,-500.0,0.00013698,2]
[332952430,1721701863169,-500.0,0.00013698,2]
[332952431,1721701863180,-500.0,0.00013698,2]
[332952432,1721701863190,-256.1195435,0.00013698,2]
[332952433,1721701863201,-500.0,0.00013698,2]
[332952434,1721701863212,-500.0,0.00013698,2]
[332952435,1721701863222,-500.0,0.00013698,2]
[332952436,1721701863231,-500.0,0.00013698,2]
[332952437,1721701863241,-500.0,0.00013698,2]
[332952438,1721701863251,-502.42885732,0.00013698,2]
[332952439,1721701863260,-500.0,0.00013698,2]
[332952440,1721701863271,-500.0,0.00013698,2]
[332952441,1721701863281,-500.0,0.00013698,2]
[332952442,1721701863291,-500.0,0.00013698,2]
[332952443,1721701863301,-516.79229125,0.00013698,2]
[332952444,1721701863311,-500.0,0.00013698,2]
[332952445,1721701863321,-504.01207126,0.00013698,2]
[332952446,1721701863331,-2087.228037,0.00013698,2]
[332952447,1721701863341,-503.81273375,0.00013698,2]
[332952448,1721701863351,-2087.228037,0.00013698,2]
[332952449,1721701863362,-2087.228037,0.00013698,2]
[332952450,1721701863372,-2087.228037,0.00013698,2]
[332952451,1721701863382,-500.0,0.00013698,2]
[332952452,1721701863394,-2087.228037,0.00013698,2]
[332952453,1721701863404,-2087.228037,0.00013698,2]
[332952454,1721701863413,-2087.228037,0.00013698,2]
[332952455,1721701863477,-500.0,0.00013698,2]
[332952456,1721701863488,-500.0,0.00013698,2]
[332952457,1721701863498,-500.0,0.00013698,2]
[332952458,1721701863508,-500.0,0.00013698,2]
[332952459,1721701863517,-2087.228037,0.00013698,2]
[332952460,1721701863527,-2087.228037,0.00013698,2]
[332952461,1721701863536,-2087.228037,0.00013698,2]
[332952462,1721701863546,-2087.228037,0.00013698,2]
[332952463,1721701863556,-500.0,0.00013698,2]
[332952464,1721701863566,-2087.228037,0.00013698,2]
[332952465,1721701863576,-2087.228037,0.00013698,2]
[332952466,1721701863586,-2087.228037,0.00013698,2]
[332952467,1721701863595,-2087.228037,0.00013698,2]
[332952468,1721701863605,-2087.228037,0.00013698,2]
[332952469,1721701863618,-2087.228037,0.00013698,2]
[332952470,1721701863628,-2087.228037,0.00013698,2]
[332952471,1721701863641,-2087.228037,0.00013698,2]
[332952472,1721701863650,-2087.228035,0.00013698,2]
[332952473,1721701863661,-642.03,0.00013698,2]
[332952474,1721701863671,-500.0,0.00013698,2]
[332952475,1721701863681,-500.0,0.00013698,2]
[332952476,1721701863693,-500.0,0.00013698,2]
[332952477,1721701863703,-500.0,0.00013698,2]
[332952478,1721701863713,-500.0,0.00013698,2]
[332952479,1721701863723,-502.40720638,0.00013698,2]
[332952480,1721701863733,-500.0,0.00013698,2]
[332952481,1721701863744,-632.95,0.00013698,2]
[332952482,1721701863754,-647.35050104,0.00013698,2]
[332952483,1721701863764,-500.0,0.00013698,2]
[332952484,1721701863774,-507.17750174,0.00013698,2]
[332952485,1721701863784,-502.4818351,0.00013698,2]
[332952486,1721701863795,-500.0,0.00013698,2]
[332952487,1721701863805,-500.0,0.00013698,2]
[332952488,1721701863815,-525.96507878,0.00013698,2]
[332952489,1721701863825,-500.0,0.00013698,2]
[332952490,1721701863835,-506.40192986,0.00013698,2]
[332952491,1721701863846,-609.05,0.00013698,2]
[332952492,1721701863857,-504.53397214,0.00013698,2]
[332952493,1721701863868,-500.0,0.00013698,2]
[332952494,1721701863878,-500.0,0.00013698,2]
[332952495,1721701863891,-500.0,0.00013698,2]
[332952496,1721701863901,-500.0,0.00013698,2]
[332952497,1721701863910,-550.909504,0.00013698,2]
[332952498,1721701863919,-550.909504,0.00013698,2]
[332952499,1721701863931,-550.909504,0.00013698,2]
[332952500,1721701863941,-550.909504,0.00013698,2]
[332952501,1721701863952,-500.0,0.00013698,2]
[332952502,1721701863962,-550.909504,0.00013698,2]
[332952503,1721701863972,-500.0,0.00013698,2]
[332952504,1721701863982,-550.909504,0.00013698,2]
[332952505,1721701863992,-500.0,0.00013698,2]
[332952506,1721701864002,-500.0,0.00013698,2]
[332952507,1721701864011,-500.0,0.00013698,2]
[332952508,1721701864021,-500.0,0.00013698,2]
[332952509,1721701864031,-503.25641525,0.00013698,2]
[332952510,1721701864041,-517.90706914,0.00013698,2]
[332952511,1721701864051,-500.0,0.00013698,2]
[332952512,1721701864061,-500.0,0.00013698,2]
[332952513,1721701864071,-550.909504,0.00013698,2]
[332952514,1721701864081,-550.909504,0.00013698,2]
[332952515,1721701864091,-500.0,0.00013698,2]
[332952516,1721701864100,-550.909504,0.00013698,2]
[332952517,1721701864110,-550.909504,0.00013698,2]
[332952518,1721701864120,-550.909504,0.00013698,2]
[332952519,1721701864129,-550.909504,0.00013698,2]
[332952520,1721701864141,-246.73802569,0.00013698,2]
[332952521,1721701864151,-506.62129138,0.00013698,2]
[332952522,1721701864160,-550.909504,0.00013698,2]
[332952523,1721701864170,-550.909504,0.00013698,2]
[332952524,1721701864179,-550.909504,0.00013698,2]
[332952525,1721701864190,-550.909504,0.00013698,2]
[332952526,1721701864200,-502.15345246,0.00013698,2]
[332952527,1721701864210,-550.909504,0.00013698,2]
[332952528,1721701864220,-550.909504,0.00013698,2]
[332952529,1721701864230,-550.909504,0.00013698,2]
[332952530,1721701864240,-550.909503,0.00013698,2]
[332952531,1721701864250,-500.0,0.00013698,2]
[332952532,1721701864260,-151.0,0.00013698,2]
[332952533,1721701864271,-244.270349,0.00013698,2]
[332952534,1721701864281,-502.6997841,0.00013698,2]
[332952535,1721701864291,-500.0,0.00013698,2]
[332952536,1721701864302,-500.0,0.00013698,2]
[332952537,1721701864313,-500.0,0.00013698,2]
[332952538,1721701864323,-500.0,0.00013698,2]
[332952539,1721701864334,-587.14991898,0.00013698,2]
[332952540,1721701864344,-500.0,0.00013698,2]
[332952541,1721701864355,-500.0,0.00013698,2]
[332952542,1721701864365,-502.34990951,0.00013698,2]
[332952543,1721701864375,-500.0,0.00013698,2]
[332952544,1721701864391,-500.0,0.00013698,2]
[332952545,1721701864401,-500.0,0.00013698,2]
[332952546,1721701864411,-339.82017587,0.00013698,2]
[332952547,1721701864421,-500.0,0.00013698,2]
[332952548,1721701864432,-529.5921059,0.00013698,2]
[332952549,1721701864442,-500.0,0.00013698,2]
[332952550,1721701864452,-500.0,0.00013698,2]
[332952551,1721701864464,-517.895077,0.00013698,2]
[332952552,1721701864474,-629.51,0.00013698,2]
[332952553,1721701864485,-502.55898061,0.00013698,2]
[332952554,1721701864495,-500.0,0.00013698,2]
[332952555,1721701864506,-500.0,0.00013698,2]
[332952556,1721701864517,-500.0,0.00013698,2]
[332952557,1721701864527,-502.75742522,0.00013698,2]
[332952558,1721701864538,-500.0,0.00013698,2]
[332952559,1721701864549,-500.0,0.00013698,2]
[332952560,1721701864559,-501.81686856,0.00013698,2]
[332952561,1721701864569,-503.70580319,0.00013698,2]
[332952562,1721701864579,-500.0,0.00013698,2]
[332952563,1721701864589,-500.0,0.00013698,2]
[332952564,1721701864600,-500.0,0.00013698,2]
[332952565,1721701864612,-500.0,0.00013698,2]
[332952566,1721701864628,-503.06763519,0.00013698,2]
[332952567,1721701864642,-500.0,0.00013698,2]
[332952568,1721701864651,-500.0,0.00013698,2]
[332952569,1721701864662,-500.0,0.00013698,2]
[332952570,1721701864673,-500.68249841,0.00013698,2]
[332952571,1721701864683,-500.54397169,0.00013698,2]
[332952572,1721701864693,-500.0,0.00013698,2]
[332952573,1721701864704,-510.19104729,0.00013698,2]
[332952574,1721701864715,-605.15836936,0.00013698,2]
[332952575,1721701864725,-151.0,0.00013698,2]
[332952576,1721701864735,-151.0,0.00013698,2]
[332952577,1721701864744,-151.0,0.00013698,2]
[332952578,1721701864754,-501.38770988,0.00013698,2]
[332952579,1721701864764,-151.0,0.00013698,2]
[332952580,1721701864774,-505.34817424,0.00013698,2]
[332952581,1721701864785,-151.0,0.00013698,2]
[332952582,1721701864794,-505.02122063,0.00013698,2]
[332952583,1721701864804,-151.0,0.00013698,2]
[332952584,1721701864814,-151.0,0.00013698,2]
[332952585,1721701864824,-151.0,0.00013698,2]
[332952586,1721701864834,-504.39401817,0.00013698,2]
[332952587,1721701864844,-151.0,0.00013698,2]
[332952588,1721701864853,-264.636571,0.00013698,2]
[332952589,1721701864864,-502.5628442,0.00013698,2]
[332952590,1721701864874,-530.3670072,0.00013698,2]
[332952591,1721701864887,-502.54125845,0.00013698,2]
[332952592,1721701864897,-503.27988686,0.00013698,2]
[332952593,1721701864907,-501.71836738,0.00013698,2]
[332952594,1721701864917,-436.50121064,0.00013698,2]
[332952595,1721701864927,-500.0,0.00013698,2]
[332952596,1721701864937,-632.27628792,0.00013698,2]
[332952597,1721701864948,-500.0,0.00013698,2]
[332952598,1721701864958,-500.0,0.00013698,2]
[332952599,1721701864967,-500.0,0.00013698,2]
[332952600,1721701864977,-500.0,0.00013698,2]
[332952601,1721701864987,-549.25387333,0.00013698,2]
[332952602,1721701864996,-500.0,0.00013698,2]
[332952603,1721701865006,-500.0,0.00013698,2]
[332952604,1721701865016,-501.8425713,0.00013698,2]
[332952605,1721701865026,-500.0,0.00013698,2]
[332952606,1721701865036,-500.0,0.00013698,2]
[332952607,1721701865046,-500.0,0.00013698,2]
[332952608,1721701865056,-522.92218775,0.00013698,2]
[332952609,1721701865066,-500.0,0.00013698,2]
[332952610,1721701865076,-500.0,0.00013698,2]
[332952611,1721701865086,-500.0,0.00013698,2]
[332952612,1721701865097,-500.0,0.00013698,2]
[332952613,1721701865107,-504.03548005,0.00013698,2]
[332952614,1721701865117,-500.0,0.00013698,2]
[332952615,1721701865126,-500.0,0.00013698,2]
[332952616,1721701865137,-500.0,0.00013698,2]
[332952617,1721701865148,-501.58719544,0.00013698,2]
[332952618,1721701865158,-500.0,0.00013698,2]
[332952619,1721701865168,-500.0,0.00013698,2]
[332952620,1721701865179,-504.53939674,0.00013698,2]
[332952621,1721701865190,-500.0,0.00013698,2]
[332952622,1721701865200,-500.0,0.00013698,2]
[332952623,1721701865211,-500.0,0.00013698,2]
[332952624,1721701865222,-397.30572664,0.00013698,2]
[332952630,1721702577543,155.0044092,9.999e-05,4]
[332952631,1721702742171,-273.37336231,9.9e-05,2]
[332952632,1721702742193,-349.78198392,9.999e-05,2]
[332952633,1721702829151,-367.0,9.899e-05,2]
[332952634,1721702836112,-1853.10619725,9.899e-05,2]
[332952635,1721702836135,-300.0,9.998e-05,2]
[332952636,1721702836157,-2996.41852318,9.999e-05,2]
[332952642,1721702949120,-312.23793145,9.799e-05,2]
[332952643,1721702949143,-27885.55910716,9.999e-05,2]
[332952644,1721702949165,-154.80556566,9.999e-05,2]
[332952645,1721702949187,-568.5867567,9.999e-05,2]
[332952646,1721702949209,-783.26953764,9.999e-05,2]
[332952647,1721702949231,-155.25535222,9.999e-05,2]
[332952648,1721702949255,-524.07732355,9.999e-05,2]
[332952649,1721702949277,-157.64183891,9.999e-05,2]
[332952650,1721702949299,-245.31707174,9.999e-05,2]
[332952651,1721702949321,-289.8705244,9.999e-05,2]
[332952652,1721702949343,-1023.98897767,9.999e-05,2]
[332952653,1721702949364,-527.90196554,9.999e-05,2]
[332952654,1721702949385,-482.40165181,9.999e-05,2]
[332952655,1721702949407,-840.79,0.00010959,2]
[332952656,1721702949429,-1386.73,0.00010959,2]
[332952657,1721702949450,-933.6643009,0.00010959,2]
[332952675,1721703033157,-160.00381439,9.999e-05,2]
[332952677,1721703033169,-1000.0,0.00010959,2]
[332952680,1721703033180,-833.33,0.00010959,2]
[332952681,1721703033190,-694.44,0.00010959,2]
[332952684,1721703033202,-578.7,0.00010959,2]
[332952685,1721703033212,-482.25,0.00010959,2]
[332952687,1721703033222,-401.88,0.00010959,2]
[332952689,1721703033233,-163.326862,0.00011943,2]
[332952692,1721703033244,-163.326862,0.00011978,2]
[332952694,1721703033255,-457.6136623,0.00011995,2]
[332952695,1721703033265,-163.326862,0.00012012,2]
[332952698,1721703033276,-24900.0,0.00012023,2]
[332952699,1721703033286,-163.326862,0.00012047,2]
[332952701,1721703033298,-163.326862,0.00012082,2]
[332952703,1721703033311,-163.326862,0.00012116,2]
[332952706,1721703033321,-16271.74675903,0.0001212,2]
[332952708,1721703033331,-439.61316792,0.0001212,2]
[332952710,1721703033342,-11.50669205,0.00012151,2]
[332952712,1721703033357,-151.82016995,0.00012151,2]
[332952714,1721703033368,-163.326862,0.00012185,2]
[332952716,1721703033378,-163.326862,0.0001222,2]
[332952718,1721703033388,-121.30799029,0.00012254,2]
[332953612,1721703041969,-334.9,0.00010959,2]
[332953614,1721703041980,-42.01887171,0.00012254,2]
[332953616,1721703041991,-163.326862,0.00012289,2]
[332953618,1721703042000,-163.326862,0.00012324,2]
[332953620,1721703042010,-163.326862,0.00012358,2]
[332953622,1721703042020,-163.326862,0.00012393,2]
[332953624,1721703042029,-163.326862,0.00012427,2]
[332953626,1721703042039,-163.326862,0.00012462,2]
[332953628,1721703042049,-163.326862,0.00012496,2]
[332953630,1721703042060,-163.326862,0.00012531,2]
[332953632,1721703042070,-163.326862,0.00012566,2]
[332953634,1721703042079,-2224.34179766,0.000129,2]
[332953636,1721703042089,-2224.34179763,0.000129,2]
[332953638,1721703042098,-293.8749366,0.00013078,2]
[332953640,1721703042109,-153.0,0.00013157,2]
[332953642,1721703042118,-200.0,0.00013425,2]
[332953644,1721703042128,-306.0,0.000136,2]
[332953646,1721703042138,-206.5463282,0.000136,2]
[332953648,1721703042147,-11159.6074298,0.00013688,2]
[332953650,1721703042157,-1394.95092872,0.00013689,2]
[332953652,1721703042167,-150.505,0.00013694,2]
[332953655,1721703042176,-505.0,0.00013694,2]
[332953658,1721703042186,-1409.0,0.00013694,2]
[332953661,1721703042196,-102.69427336,0.00013698,2]
[332953664,1721703042206,-500.0,0.00013698,2]
[332953667,1721703042216,-500.0,0.00013698,2]
[332953670,1721703042225,-500.0,0.00013698,2]
[332953672,1721703042236,-247.92404354,0.00013698,2]
[332953674,1721703042246,-500.0,0.00013698,2]
[332953676,1721703042255,-501.95535391,0.00013698,2]
[332953678,1721703042266,-503.06645661,0.00013698,2]
[332953680,1721703042276,-505.82585355,0.00013698,2]
[332953682,1721703042286,-502.47511594,0.00013698,2]
[332953684,1721703042296,-565.56485377,0.00013698,2]
[332953686,1721703042306,-500.0,0.00013698,2]
[332953688,1721703042316,-500.0,0.00013698,2]
[332953690,1721703042326,-503.78524113,0.00013698,2]
[332953692,1721703042335,-500.0,0.00013698,2]
[332953694,1721703042345,-500.0,0.00013698,2]
[332953696,1721703042355,-500.0,0.00013698,2]
[332953698,1721703042364,-504.17237294,0.00013698,2]
[332953700,1721703042373,-503.93951742,0.00013698,2]
[332953702,1721703042384,-500.0,0.00013698,2]
[332953704,1721703042393,-500.0,0.00013698,2]
[332953706,1721703042403,-500.0,0.00013698,2]
[332953708,1721703042413,-500.0,0.00013698,2]
[332953710,1721703042423,-500.0,0.00013698,2]
[332953712,1721703042433,-503.78612289,0.00013698,2]
[332953715,1721703042443,-503.92257116,0.00013698,2]
[332953717,1721703042453,-221.46543973,0.00013698,2]
[332953718,1721703042462,-500.0,0.00013698,2]
[332953720,1721703042471,-506.16372237,0.00013698,2]
[332953722,1721703042481,-504.07197194,0.00013698,2]
[332953724,1721703042490,-500.0,0.00013698,2]
[332953726,1721703042500,-510.35524229,0.00013698,2]
[332953728,1721703042510,-500.0,0.00013698,2]
[332953730,1721703042519,-214.05261226,0.00013698,2]
[332953733,1721703042530,-511.97845603,0.00013698,2]
[332953735,1721703042540,-500.0,0.00013698,2]
[332953737,1721703042549,-500.96063051,0.00013698,2]
[332953739,1721703042562,-500.0,0.00013698,2]
[332953741,1721703042572,-500.0,0.00013698,2]
[332953743,1721703042582,-531.04409947,0.00013698,2]
[332953745,1721703042594,-500.0,0.00013698,2]
[332953747,1721703042604,-503.15642272,0.00013698,2]
[332953749,1721703042613,-500.0,0.00013698,2]
[332953752,1721703042623,-500.0,0.00013698,2]
[332953755,1721703042634,-500.0,0.00013698,2]
[332953758,1721703042643,-500.0,0.00013698,2]
[332953762,1721703042654,-503.05648173,0.00013698,2]
[332953766,1721703042663,-503.51841882,0.00013698,2]
[332953769,1721703042673,-500.0,0.00013698,2]
[332953772,1721703042683,-500.0,0.00013698,2]
[332953775,1721703042693,-500.0,0.00013698,2]
[332953778,1721703042703,-506.87488259,0.00013698,2]
[332953781,1721703042713,-500.0,0.00013698,2]
[332953784,1721703042723,-500.0,0.00013698,2]
[332953787,1721703042732,-177.56488755,0.00013698,2]
[332953790,1721703042743,-500.0,0.00013698,2]
[332953793,1721703042752,-505.65927812,0.00013698,2]
[332953796,1721703042762,-500.0,0.00013698,2]
[332953799,1721703042772,-500.80898232,0.00013698,2]
[332953802,1721703042781,-504.351301,0.00013698,2]
[332953805,1721703042790,-500.0,0.00013698,2]
[332953808,1721703042802,-501.99856816,0.00013698,2]
[332953811,1721703042811,-500.0,0.00013698,2]
[332953814,1721703042820,-504.12761599,0.00013698,2]
[332953818,1721703042829,-500.0,0.00013698,2]
[332953821,1721703042839,-500.0,0.00013698,2]
[332953824,1721703042849,-503.33651097,0.00013698,2]
[332953827,1721703042858,-503.79506167,0.00013698,2]
[332953830,1721703042868,-500.0,0.00013698,2]
[332953833,1721703042878,-500.0,0.00013698,2]
[332953836,1721703042888,-508.19322191,0.00013698,2]
[332953839,1721703042897,-516.26547321,0.00013698,2]
[332953842,1721703042907,-500.48716057,0.00013698,2]
[332953844,1721703042919,-500.82066488,0.00013698,2]
[332953847,1721703042929,-512.58218451,0.00013698,2]
[332953850,1721703042939,-500.0,0.00013698,2]
[332953853,1721703042949,-500.0,0.00013698,2]
[332953855,1721703042960,-500.83550455,0.00013698,2]
[332953857,1721703042970,-500.0,0.00013698,2]
[332953859,1721703042980,-151.0,0.00013698,2]
[332953861,1721703042990,-155.293711,0.00013698,2]
[332953863,1721703043000,-209.054415,0.00013698,2]
[332953865,1721703043009,-2083.33,0.00013698,2]
[332953867,1721703043019,-500.0,0.00013698,2]
[332953869,1721703043029,-151.0,0.00013698,2]
[332953871,1721703043039,-151.0,0.00013698,2]
[332953873,1721703043048,-151.416266,0.00013698,2]
[332953875,1721703043059,-500.0,0.00013698,2]
[332953877,1721703043069,-500.0,0.00013698,2]
[332953879,1721703043080,-500.0,0.00013698,2]
[332953881,1721703043090,-339.91633675,0.00013698,2]
[332953883,1721703043100,-500.0,0.00013698,2]
[332953885,1721703043110,-333.85852225,0.00013698,2]
[332953887,1721703043119,-500.35,0.00013698,2]
[332953889,1721703043129,-500.0,0.00013698,2]
[332953892,1721703043140,-500.0,0.00013698,2]
[332953894,1721703043153,-500.0,0.00013698,2]
[332953896,1721703043163,-500.0,0.00013698,2]
[332953898,1721703043173,-500.0,0.00013698,2]
[332953900,1721703043182,-500.0,0.00013698,2]
[332953902,1721703043193,-2065.64,0.00013698,2]
[332953904,1721703043203,-500.0,0.00013698,2]
[332953906,1721703043212,-500.0,0.00013698,2]
[332953908,1721703043222,-500.0,0.00013698,2]
[332953910,1721703043232,-500.0,0.00013698,2]
[332953912,1721703043242,-4771.35,0.00013698,2]
[332953914,1721703043251,-500.0,0.00013698,2]
[332953916,1721703043261,-228.20082559,0.00013698,2]
[332953918,1721703043270,-500.0,0.00013698,2]
[332953920,1721703043279,-500.0,0.00013698,2]
[332953922,1721703043290,-516.65,0.00013698,2]
[332953924,1721703043299,-13622.15757481,0.00013698,2]
[332953926,1721703043310,-500.0,0.00013698,2]
[332953928,1721703043319,-4771.35,0.00013698,2]
[332953930,1721703043329,-4771.35,0.00013698,2]
[332953932,1721703043339,-4771.35,0.00013698,2]
[332953934,1721703043349,-4771.35,0.00013698,2]
[332953936,1721703043358,-4771.35,0.00013698,2]
[332953938,1721703043369,-500.0,0.00013698,2]
[332953940,1721703043378,-4771.35,0.00013698,2]
[332953942,1721703043388,-4771.35,0.00013698,2]
[332953945,1721703043398,-4771.35,0.00013698,2]
[332953947,1721703043408,-4771.35,0.00013698,2]
[332953949,1721703043418,-4771.35,0.00013698,2]
[332953951,1721703043428,-4771.35,0.00013698,2]
[332953953,1721703043438,-500.0,0.00013698,2]
[332953955,1721703043447,-2775.2933156,0.00013698,2]
[332953959,1721703043478,-501.98208771,0.00013698,2]
[332953973,1721703043599,-1494.07459669,0.00013698,2]
[332953975,1721703043609,-4771.35,0.00013698,2]
[332953977,1721703043619,-4333.24592143,0.00013698,2]
[332956742,1721703820972,10000.0,0.000225,30]
[332956743,1721703839843,3808.87659544,0.000225,30]
[332956744,1721704035148,-349.893396,9.898e-05,2]
[332956745,1721704035169,-51.91273666,9.898e-05,2]
[332956746,1721704038136,-273.37336231,9.898e-05,2]
[332956750,1721704162119,-232.85,9.799e-05,2]
[332956857,1721704232991,-65.13065934,9.799e-05,2]
[332956859,1721704233001,-193.56934067,9.799e-05,2]
[332956862,1721704233012,-398.8,9.799e-05,2]
[332956864,1721704233024,-6196.80925947,9.799e-05,2]
[332956866,1721704233036,-9482.56815889,9.799e-05,2]
[332956868,1721704233046,-300.0,9.897e-05,2]
[332956870,1721704233057,-300.0,9.897e-05,2]
[332956872,1721704233067,-200.4740066,9.93e-05,2]
[332956874,1721704233076,-201.273204,9.999e-05,2]
[332956876,1721704233086,-155.48242006,9.999e-05,2]
[332956879,1721704233097,-728.20993371,9.999e-05,2]
[332956881,1721704233106,-157.42543025,9.999e-05,2]
[332956883,1721704233117,-155.20845929,9.999e-05,2]
[332956885,1721704233127,-202.03848119,9.999e-05,2]
[332956887,1721704233139,-664.55696094,9.999e-05,2]
[332956889,1721704233149,-162.90193781,9.999e-05,2]
[332956891,1721704233159,-156.50566261,9.999e-05,2]
[332956893,1721704233170,-155.57016297,9.999e-05,2]
[332956895,1721704233180,-212.26401501,9.999e-05,2]
[332957330,1721704238532,-38.10962125,9.999e-05,2]
[332957331,1721704238545,-160.51409452,9.999e-05,2]
[332957332,1721704238555,-997.78791935,0.0001,2]
[332957333,1721704238564,-287.93931924,0.0001,2]
[332957334,1721704238574,-167.995627,0.00011163,2]
[332957335,1721704238585,-52.71316643,0.00011236,2]
[332957447,1721704240349,-115.28246057,0.00011236,2]
[332957448,1721704240358,-167.995627,0.00011309,2]
[332957449,1721704240370,-167.995627,0.00011381,2]
[332957450,1721704240379,-24900.0,0.00011394,2]
[332957451,1721704240389,-167.995627,0.00011454,2]
[332957452,1721704240399,-167.995627,0.00011527,2]
[332957453,1721704240408,-167.995627,0.000116,2]
[332957454,1721704240418,-521.5906284,0.00011615,2]
[332957455,1721704240428,-167.995627,0.00011672,2]